bitfinex-derivatives/quotes_BTCF0:USTF0_20241217
["timestamp","ask_amount","ask_price","bid_price","bid_amount"]
[1734404008919,0.7799047,106320.0,106310.0,0.22549145]
[1734404009111,0.8922191,106320.0,106310.0,7.515e-05]
[1734404009317,0.7799047,106320.0,106310.0,7.515e-05]
[1734404010521,0.75148444,106320.0,106310.0,7.515e-05]
[1734404012327,0.047029,106310.0,106300.0,0.6862163]
[1734404012522,0.23498961,106310.0,106300.0,0.6862163]
[1734404012826,0.2851429,106310.0,106300.0,0.3254163]
[1734404014315,0.67403209,106310.0,106300.0,0.3254163]
[1734404017125,0.67403209,106310.0,106300.0,0.1]
[1734404017430,0.67403209,106310.0,106300.0,0.3254163]
[1734404017615,0.75820129,106310.0,106300.0,0.1]
[1734404018021,0.67403209,106310.0,106300.0,0.1]
[1734404020035,0.68349523,106310.0,106300.0,0.1]
[1734404021730,1.03097523,106310.0,106300.0,0.1]
[1734404027620,1.171692,106310.0,106300.0,0.1]
[1734404027825,1.03097523,106310.0,106300.0,0.1]
[1734404030135,1.171692,106310.0,106300.0,0.1]
[1734404031024,1.03097523,106310.0,106300.0,0.1]
[1734404031229,1.05939549,106310.0,106300.0,0.1]
[1734404033426,0.69859549,106310.0,106300.0,0.1]
[1734404033626,1.05939549,106310.0,106300.0,0.1]
[1734404035231,1.05939549,106310.0,106300.0,0.3254163]
[1734404040937,1.22825562,106310.0,106300.0,0.3254163]
[1734404041236,1.05939549,106310.0,106300.0,0.3254163]
[1734404042049,1.07792889,106310.0,106300.0,0.3254163]
[1734404042636,1.07792889,106310.0,106300.0,0.09647031]
[1734404042827,0.047038,106290.0,106280.0,0.64263658]
[1734404043032,0.29398223,106290.0,106280.0,0.64263658]
[1734404043232,0.20964326,106290.0,106280.0,0.64263658]
[1734404043638,0.20964326,106290.0,106280.0,0.64313658]
[1734404044747,0.20964326,106290.0,106280.0,0.64263658]
[1734404044928,0.25987905,106290.0,106280.0,0.64263658]
[1734404045266,0.20972576,106290.0,106280.0,0.64263658]
[1734404045653,0.28799204,106290.0,106280.0,0.28233658]
[1734404045942,0.70219204,106290.0,106280.0,0.0005]
[1734404046130,0.71168646,106290.0,106280.0,0.0005]
[1734404046731,0.047043,106280.0,106270.0,0.75773658]
[1734404047037,0.25974081,106280.0,106270.0,0.39693658]
[1734404047237,0.25974081,106280.0,106270.0,0.1151]
[1734404049644,0.25974081,106280.0,106260.0,0.6427256]
[1734404049843,0.09720029,106270.0,106260.0,0.6427256]
[1734404052135,0.45800029,106270.0,106260.0,0.2819256]
[1734404052547,0.50815358,106270.0,106260.0,0.2819256]
[1734404053242,0.70470187,106270.0,106260.0,8.902e-05]
[1734404053834,0.65454858,106270.0,106260.0,8.902e-05]
[1734404054340,0.70470187,106270.0,106260.0,8.902e-05]
[1734404054645,0.29374858,106270.0,106260.0,8.902e-05]
[1734404054840,0.18135735,106270.0,106260.0,0.36088902]
[1734404055154,0.29374858,106270.0,106260.0,0.36088902]
[1734404055444,0.30303666,106270.0,106260.0,0.36088902]
[1734404055650,0.19064543,106270.0,106260.0,0.36088902]
[1734404059546,0.10648837,106270.0,106260.0,0.36088902]
[1734404059752,0.10648837,106270.0,106260.0,0.36138902]
[1734404061048,0.19064543,106270.0,106260.0,0.36138902]
[1734404062951,0.10648837,106270.0,106260.0,0.36138902]
[1734404064535,0.12575255,106270.0,106260.0,0.36138902]
[1734404065648,0.12575255,106270.0,106260.0,0.6432256]
[1734404067147,0.12575255,106270.0,106260.0,0.6902776]
[1734404067746,0.12575255,106270.0,106260.0,0.6897776]
[1734404073550,0.12575255,106270.0,106260.0,0.74584627]
[1734404074456,0.20990961,106270.0,106260.0,0.74584627]
[1734404077560,0.12575255,106270.0,106260.0,0.74584627]
[1734404083668,0.20990961,106270.0,106260.0,0.74584627]
[1734404089363,0.26730961,106270.0,106260.0,0.74584627]
[1734404090773,0.37970084,106270.0,106260.0,0.74584627]
[1734404091571,0.32954755,106270.0,106260.0,0.74584627]
[1734404091866,0.37970084,106270.0,106260.0,0.74584627]
[1734404094771,0.29554378,106270.0,106260.0,0.74584627]
[1734404095460,0.37994834,106270.0,106260.0,0.74584627]
[1734404098876,0.26755711,106270.0,106260.0,0.74584627]
[1734404109963,0.37994834,106270.0,106260.0,0.74584627]
[1734404110265,0.29554378,106270.0,106260.0,0.69879427]
[1734404110469,0.40514378,106270.0,106260.0,0.7399546]
[1734404111174,0.40514378,106270.0,106260.0,0.36088902]
[1734404111562,0.40514378,106270.0,106260.0,0.6430128]
[1734404112170,0.45529707,106270.0,106260.0,0.6430128]
[1734404113981,0.45529707,106270.0,106260.0,0.68417313]
[1734404114280,0.45529707,106270.0,106260.0,0.32337313]
[1734404114780,0.59586203,106270.0,106260.0,0.32337313]
[1734404114983,0.59586203,106270.0,106260.0,0.54899254]
[1734404115368,0.59586203,106270.0,106260.0,0.26686876]
[1734404116476,0.45529707,106270.0,106260.0,0.26686876]
[1734404117174,0.45529707,106270.0,106260.0,0.22570843]
[1734404117372,0.047052,106260.0,106250.0,0.17511993]
[1734404117578,0.047052,106260.0,106250.0,0.21628026]
[1734404117579,0.30991729,106260.0,106250.0,0.21628026]
[1734404117876,0.45048225,106260.0,106250.0,0.04166033]
[1734404118074,0.40032896,106260.0,106250.0,0.04166033]
[1734404118277,0.047056,106250.0,106240.0,0.3608]
[1734404118474,0.2358805,106250.0,106240.0,0.3608]
[1734404119895,0.28603379,106250.0,106240.0,0.3608]
[1734404120674,0.2358805,106250.0,106240.0,0.3608]
[1734404123373,0.24514203,106250.0,106240.0,0.3608]
[1734404127385,0.16087082,106250.0,106240.0,0.3608]
[1734404128595,0.04706,106240.0,106230.0,0.3608]
[1734404128883,0.047065,106230.0,106220.0,0.40196936]
[1734404129087,0.047065,106230.0,106220.0,0.44903836]
[1734404129290,0.047065,106230.0,106220.0,0.45802229]
[1734404129883,0.047065,106230.0,106220.0,0.407869]
[1734404130283,0.09721829,106230.0,106220.0,0.407869]
[1734404131192,0.09721829,106230.0,106220.0,0.3608]
[1734404134797,0.09721829,106230.0,106220.0,0.3613]
[1734404135892,0.09721829,106230.0,106220.0,0.40246936]
[1734404136282,0.09721829,106230.0,106220.0,0.3613]
[1734404137492,0.1066676,106230.0,106220.0,0.3613]
[1734404137886,0.1066676,106230.0,106220.0,0.408369]
[1734404141695,0.1066676,106230.0,106220.0,0.44953836]
[1734404143394,0.12560578,106230.0,106220.0,0.44953836]
[1734404146694,0.12560578,106230.0,106220.0,0.408369]
[1734404147101,0.12560578,106230.0,106220.0,0.44953836]
[1734404147406,0.12560578,106230.0,106220.0,0.73126335]
[1734404150397,0.20987699,106230.0,106220.0,0.73126335]
[1734404151506,0.1597237,106230.0,106220.0,0.73126335]
[1734404151706,0.47897421,106240.0,106230.0,0.047065]
[1734404151897,0.08477121,106240.0,106230.0,0.61971829]
[1734404152708,0.0005,106240.0,106230.0,1.25762354]
[1734404153006,0.08427121,106250.0,106240.0,0.04706]
[1734404153205,0.08427121,106250.0,106240.0,0.45801329]
[1734404154207,0.29397565,106260.0,106250.0,0.047056]
[1734404154410,0.18157023,106260.0,106250.0,0.407856]
[1734404155502,0.19086163,106260.0,106250.0,0.407856]
[1734404156706,0.20936687,106260.0,106250.0,0.407856]
[1734404157198,0.12509566,106260.0,106250.0,0.407856]
[1734404157404,0.17524895,106260.0,106250.0,0.407856]
[1734404158905,0.17524895,106260.0,106250.0,0.3608]
[1734404159111,0.24101492,106260.0,106250.0,0.3608]
[1734404159314,0.047056,106250.0,106240.0,0.407858]
[1734404159514,1.64820929,106250.0,106240.0,0.407858]
[1734404159715,0.14820929,106250.0,106240.0,0.407858]
[1734404159916,0.14870929,106250.0,106240.0,0.407858]
[1734404160816,0.14820929,106250.0,106240.0,0.407858]
[1734404161603,0.2324805,106250.0,106240.0,0.047058]
[1734404161816,0.14870929,106250.0,106240.0,0.407858]
[1734404162902,0.14820929,106250.0,106240.0,0.407858]
[1734404163805,0.14870929,106250.0,106240.0,0.407858]
[1734404165219,0.2329805,106250.0,106240.0,0.407858]
[1734404167315,0.1819805,106250.0,106240.0,0.407858]
[1734404167520,0.09770929,106250.0,106240.0,0.407858]
[1734404171221,0.0005,106250.0,106240.0,0.45801129]
[1734404172932,0.0005,106250.0,106240.0,0.79591654]
[1734404173812,0.0005,106250.0,106240.0,0.45801129]
[1734404174913,0.20943668,106260.0,106250.0,0.047056]
[1734404175122,0.20943668,106260.0,106250.0,0.407856]
[1734404175815,0.20993668,106260.0,106250.0,0.407856]
[1734404176017,0.20993668,106260.0,106250.0,0.768656]
[1734404176821,0.20943668,106260.0,106250.0,0.768656]
[1734404177822,0.20993668,106260.0,106250.0,0.768656]
[1734404178219,0.26008997,106260.0,106250.0,0.768656]
[1734404178819,0.25958997,106260.0,106250.0,0.768656]
[1734404179417,0.20943668,106260.0,106250.0,0.768656]
[1734404179822,0.20993668,106260.0,106250.0,0.768656]
[1734404181120,0.26008997,106260.0,106250.0,0.768656]
[1734404181325,0.20993668,106260.0,106250.0,0.768656]
[1734404185318,0.20993668,106260.0,106250.0,1.10656125]
[1734404187427,0.20993668,106260.0,106250.0,0.81880929]
[1734404187428,0.11273039,106260.0,106250.0,0.81880929]
[1734404187736,0.00059173,106260.0,106250.0,1.31801454]
[1734404193946,9.173e-05,106260.0,106250.0,1.31801454]
[1734404197142,0.10039831,106260.0,106250.0,1.10656125]
[1734404197353,0.09729702,106260.0,106250.0,1.10656125]
[1734404197649,0.09729702,106260.0,106250.0,0.768656]
[1734404197943,0.09729702,106260.0,106250.0,0.407856]
[1734404198139,0.09729702,106260.0,106250.0,0.768656]
[1734404198140,0.18156823,106260.0,106250.0,0.768656]
[1734404198541,0.09729702,106260.0,106250.0,1.10656125]
[1734404199157,0.18156823,106260.0,106250.0,1.10656125]
[1734404201058,0.09729702,106260.0,106250.0,1.10656125]
[1734404202140,0.18156823,106260.0,106250.0,1.10656125]
[1734404202339,0.09729702,106260.0,106250.0,1.10656125]
[1734404202543,0.04714373,106260.0,106250.0,1.15671454]
[1734404202745,0.04714373,106260.0,106250.0,1.26291454]
[1734404203551,0.04714373,106260.0,106250.0,1.21276125]
[1734404204448,0.09729702,106260.0,106250.0,1.21276125]
[1734404207846,0.18156823,106260.0,106250.0,1.21276125]
[1734404216965,0.18156823,106260.0,106250.0,0.49116125]
[1734404217165,0.18156823,106260.0,106250.0,1.21276125]
[1734404217859,0.23172152,106260.0,106250.0,1.10656125]
[1734404218061,0.34412694,106260.0,106250.0,0.7216]
[1734404218265,0.25985573,106260.0,106250.0,0.7216]
[1734404218463,0.25985573,106260.0,106250.0,0.3608]
[1734404219867,0.047056,106250.0,106240.0,0.407857]
[1734404220061,0.23705756,106250.0,106240.0,0.407857]
[1734404220974,0.23705756,106250.0,106240.0,0.408357]
[1734404221484,0.61529361,106250.0,106240.0,0.0005]
[1734404221675,0.047065,106230.0,106220.0,0.74577125]
[1734404221974,0.18139897,106230.0,106220.0,0.40197457]
[1734404222162,0.39983988,106230.0,106220.0,0.04117457]
[1734404222357,0.39983988,106230.0,106220.0,0.40197457]
[1734404222771,0.28759897,106230.0,106220.0,0.40197457]
[1734404223375,0.28759897,106230.0,106220.0,0.3608]
[1734404224775,0.20341829,106230.0,106220.0,0.3608]
[1734404226370,0.25357158,106230.0,106220.0,0.3608]
[1734404226880,0.30497158,106230.0,106220.0,0.3608]
[1734404227065,0.30497158,106230.0,106210.0,0.40797811]
[1734404227271,0.204665,106230.0,106220.0,0.3608]
[1734404228676,0.204665,106230.0,106210.0,0.40797811]
[1734404228677,0.047069,106220.0,106210.0,0.40797811]
[1734404228987,0.09722229,106220.0,106210.0,0.40797811]
[1734404229795,0.14737558,106220.0,106210.0,0.40797811]
[1734404232177,0.14737558,106220.0,106210.0,0.36090711]
[1734404232384,0.1474583,106220.0,106210.0,0.00010711]
[1734404232879,0.1474583,106220.0,106210.0,0.36090711]
[1734404234180,0.19761159,106220.0,106210.0,0.00010711]
[1734404234384,0.047074,106210.0,106200.0,0.4608]
[1734404234567,0.31318058,106210.0,106200.0,0.4608]
[1734404235279,0.31318058,106210.0,106200.0,0.1]
[1734404235582,0.67398058,106210.0,106200.0,0.1]
[1734404236174,0.31318058,106210.0,106200.0,0.1]
[1734404236513,0.26302729,106210.0,106200.0,0.1]
[1734404236783,0.31318058,106210.0,106200.0,0.1]
[1734404237082,0.67398058,106210.0,106200.0,0.1]
[1734404239875,0.67398058,106210.0,106200.0,0.1005]
[1734404244184,0.75816126,106210.0,106200.0,0.1005]
[1734404247075,0.50960217,106210.0,106200.0,0.1005]
[1734404247378,0.18140797,106210.0,106200.0,0.1005]
[1734404247574,0.18140797,106210.0,106200.0,0.2635]
[1734404247780,0.13125468,106210.0,106200.0,0.310578]
[1734404247979,0.18140797,106210.0,106200.0,0.310578]
[1734404248180,0.13125468,106210.0,106200.0,0.310578]
[1734404248388,0.18140797,106210.0,106200.0,0.310578]
[1734404249286,0.29364888,106210.0,106200.0,0.310578]
[1734404249490,0.18140797,106210.0,106200.0,0.671378]
[1734404250292,0.09722729,106210.0,106200.0,0.671378]
[1734404250684,0.047074,106210.0,106200.0,0.81285915]
[1734404250995,0.20994403,106220.0,106210.0,0.047074]
[1734404251195,0.20994403,106220.0,106210.0,0.407874]
[1734404251591,0.12576335,106220.0,106210.0,0.407874]
[1734404252185,0.07561006,106220.0,106210.0,0.407874]
[1734404252387,0.12576335,106220.0,106210.0,0.407874]
[1734404252792,0.02853906,106220.0,106210.0,0.45802729]
[1734404252982,0.02853906,106220.0,106210.0,0.49920186]
[1734404253794,0.0094533,106220.0,106210.0,0.49920186]
[1734404255197,8.272e-05,106220.0,106210.0,0.45802729]
[1734404256898,0.00058272,106220.0,106210.0,0.45802729]
[1734404257196,0.00058272,106220.0,106210.0,0.407874]
[1734404257392,0.00058272,106220.0,106210.0,0.45802729]
[1734404263097,0.05073601,106220.0,106210.0,0.407874]
[1734404263298,0.09780501,106220.0,106210.0,0.407874]
[1734404263895,0.09780501,106220.0,106210.0,0.047074]
[1734404264098,0.09780501,106220.0,106210.0,0.768674]
[1734404265891,0.04765172,106220.0,106210.0,0.768674]
[1734404267005,0.04715172,106220.0,106210.0,0.768674]
[1734404267398,0.09730501,106220.0,106210.0,0.768674]
[1734404268099,0.1474583,106220.0,106210.0,0.768674]
[1734404268304,0.14960501,106220.0,106210.0,0.768674]
[1734404272204,0.047074,106210.0,106200.0,0.4608]
[1734404272400,0.28740797,106210.0,106200.0,0.1]
[1734404273013,0.28740797,106210.0,106200.0,0.1005]
[1734404273199,0.28740797,106210.0,106200.0,0.4613]
[1734404274013,0.28740797,106210.0,106200.0,0.4608]
[1734404275109,0.28740797,106210.0,106200.0,0.4613]
[1734404275497,0.63756126,106210.0,106200.0,0.4613]
[1734404275702,0.63756126,106210.0,106200.0,0.1005]
[1734404275902,0.74980217,106210.0,106200.0,0.1]
[1734404276609,0.74980217,106210.0,106200.0,0.01656765]
[1734404276911,0.74980217,106210.0,106200.0,0.01706765]
[1734404277999,0.44980217,106210.0,106200.0,0.01656765]
[1734404278209,0.45937458,106210.0,106200.0,0.01656765]
[1734404279011,0.34713367,106210.0,106200.0,0.01706765]
[1734404279915,0.34713367,106210.0,106200.0,0.01656765]
[1734404280212,0.45937458,106210.0,106200.0,0.01656765]
[1734404280511,0.82017458,106210.0,106200.0,0.01656765]
[1734404280713,0.45937458,106210.0,106200.0,0.01656765]
[1734404280900,0.7359939,106210.0,106200.0,0.01706765]
[1734404281912,0.7359939,106210.0,106200.0,0.01656765]
[1734404282305,0.047078,106200.0,106190.0,0.3608]
[1734404282512,0.047083,106190.0,106180.0,0.3608]
[1734404282814,0.09723629,106190.0,106180.0,0.3608]
[1734404284614,0.09723629,106190.0,106180.0,0.407887]
[1734404286115,0.09723629,106190.0,106180.0,0.3608]
[1734404289033,0.10664388,106190.0,106180.0,0.3608]
[1734404290218,0.05649059,106190.0,106180.0,0.3608]
[1734404290620,0.10664388,106190.0,106180.0,0.3608]
[1734404291709,0.10664388,106190.0,106180.0,0.407887]
[1734404292719,0.10664388,106190.0,106180.0,0.44906172]
[1734404292912,0.10664388,106190.0,106180.0,0.407887]
[1734404293114,0.1251051,106190.0,106180.0,0.407887]
[1734404293319,0.1251051,106190.0,106180.0,0.44906172]
[1734404295019,0.1251051,106190.0,106180.0,0.44956172]
[1734404296015,0.1251051,106190.0,106180.0,0.44906172]
[1734404296923,0.1251051,106190.0,106180.0,0.44956172]
[1734404297806,0.1251051,106190.0,106180.0,0.73068862]
[1734404298017,0.1251051,106190.0,106180.0,0.73018862]
[1734404298524,0.1251051,106190.0,106180.0,0.78758862]
[1734404298819,0.02786881,106190.0,106180.0,0.83774191]
[1734404299009,0.06861451,106190.0,106180.0,0.83824191]
[1734404299211,0.01846122,106190.0,106180.0,0.83824191]
[1734404299411,0.01846122,106190.0,106180.0,0.89502026]
[1734404299615,0.394918,106200.0,106180.0,0.89502026]
[1734404299817,0.44507129,106200.0,106190.0,0.75220138]
[1734404300021,0.394918,106200.0,106190.0,0.89061239]
[1734404300222,0.40718824,106200.0,106190.0,0.8404591]
[1734404300407,0.40718824,106200.0,106190.0,1.17836435]
[1734404300612,0.40718824,106200.0,106190.0,0.89666297]
[1734404300817,0.10278474,106210.0,106200.0,0.047078]
[1734404301015,0.06955106,106210.0,106200.0,0.73082931]
[1734404301212,0.06955106,106210.0,106200.0,0.78372931]
[1734404301717,0.06955106,106210.0,106200.0,1.12163456]
[1734404301922,0.00010919,106210.0,106200.0,0.89001126]
[1734404302910,0.00060919,106210.0,106200.0,0.89001126]
[1734404303622,0.00060919,106210.0,106200.0,1.171703]
[1734404303925,0.00010919,106210.0,106200.0,0.89001126]
[1734404305027,0.00060919,106210.0,106200.0,0.89001126]
[1734404306024,0.00010919,106210.0,106200.0,0.89001126]
[1734404307118,0.00060919,106210.0,106200.0,0.89001126]
[1734404307922,0.00010919,106210.0,106200.0,0.89001126]
[1734404308230,0.00010919,106210.0,106200.0,0.83341516]
[1734404308928,0.00060919,106210.0,106200.0,0.83341516]
[1734404309919,0.00010919,106210.0,106200.0,0.83341516]
[1734404311022,0.00060919,106210.0,106200.0,0.83341516]
[1734404312019,0.00010919,106210.0,106200.0,0.83341516]
[1734404312218,0.00010919,106210.0,106200.0,0.88356845]
[1734404312416,0.00010919,106210.0,106200.0,1.2214737]
[1734404313024,0.00060919,106210.0,106200.0,1.2214737]
[1734404314027,0.00010919,106210.0,106200.0,0.94016455]
[1734404315028,0.00060919,106210.0,106200.0,0.94016455]
[1734404316321,1.9e-07,106210.0,106200.0,0.89898983]
[1734404317330,0.35735229,106230.0,106220.0,0.047069]
[1734404317524,0.35735229,106230.0,106220.0,0.81882229]
[1734404318228,0.35747392,106230.0,106220.0,0.81882229]
[1734404320818,0.00959392,106230.0,106220.0,0.81882229]
[1734404321018,0.05974721,106230.0,106220.0,0.768669]
[1734404321431,0.07831267,106230.0,106220.0,0.768669]
[1734404328335,0.02815938,106230.0,106220.0,0.768669]
[1734404328938,0.02865938,106230.0,106220.0,0.768669]
[1734404331235,0.11254635,106230.0,106220.0,0.768669]
[1734404331743,0.15961135,106230.0,106220.0,0.768669]
[1734404335143,0.07572438,106230.0,106220.0,1.10657425]
[1734404336345,0.15961135,106230.0,106220.0,1.10657425]
[1734404337944,0.20976464,106230.0,106220.0,1.10657425]
[1734404338148,0.32200555,106230.0,106220.0,0.28192974]
[1734404338353,0.37606914,106230.0,106220.0,0.64272974]
[1734404338543,0.29191858,106230.0,106220.0,0.64272974]
[1734404340255,0.29191858,106230.0,106220.0,0.68979874]
[1734404343145,0.29141858,106230.0,106220.0,0.68979874]
[1734404346346,0.32544673,106230.0,106220.0,0.73097239]
[1734404346546,0.15940582,106230.0,106220.0,1.11903093]
[1734404346749,0.15940582,106230.0,106220.0,0.79592754]
[1734404346954,0.15940582,106230.0,106220.0,0.74577425]
[1734404347161,0.15940582,106230.0,106220.0,0.78694814]
[1734404347754,0.15940582,106230.0,106220.0,0.74577425]
[1734404348055,0.20955911,106230.0,106220.0,0.74577425]
[1734404348254,0.20955911,106230.0,106220.0,1.06901423]
[1734404348646,0.20955911,106230.0,106220.0,0.68993467]
[1734404348647,0.32180002,106230.0,106220.0,0.68993467]
[1734404349065,0.37940002,106230.0,106220.0,0.68993467]
[1734404353863,0.32180002,106230.0,106220.0,0.68993467]
[1734404354157,0.32180002,106230.0,106220.0,0.45802229]
[1734404354158,0.15940582,106230.0,106220.0,0.45802229]
[1734404354364,0.27164673,106230.0,106220.0,0.68993078]
[1734404354758,0.15940582,106230.0,106220.0,0.74008407]
[1734404355064,0.15940582,106230.0,106220.0,0.79308407]
[1734404355664,0.15940582,106230.0,106220.0,0.84892754]
[1734404357161,0.09377536,106230.0,106220.0,0.89908083]
[1734404357360,0.17808741,106250.0,106230.0,0.047065]
[1734404357567,0.17808741,106250.0,106240.0,0.7400536]
[1734404357568,0.13102941,106250.0,106240.0,0.7400536]
[1734404357754,0.13102941,106250.0,106240.0,0.7949536]
[1734404357954,0.17808541,106250.0,106240.0,0.7949536]
[1734404358356,0.17819791,106250.0,106240.0,0.7949536]
[1734404358660,0.065957,106250.0,106240.0,0.7949536]
[1734404359053,0.065957,106250.0,106240.0,0.8503536]
[1734404359254,0.065957,106250.0,106240.0,1.26701854]
[1734404359663,0.018901,106250.0,106240.0,1.26701854]
[1734404359862,0.018901,106250.0,106240.0,1.54875581]
[1734404360553,0.018901,106250.0,106240.0,1.21085056]
[1734404365365,0.0001125,106250.0,106240.0,1.26100385]
[1734404365973,0.0001125,106250.0,106240.0,0.97926658]
[1734404367067,0.0006125,106250.0,106240.0,0.97926658]
[1734404368068,0.0001125,106250.0,106240.0,0.97926658]
[1734404369159,0.0006125,106250.0,106240.0,0.97926658]
[1734404370077,0.0001125,106250.0,106240.0,0.97926658]
[1734404371168,0.0006125,106250.0,106240.0,0.97926658]
[1734404372083,0.0001125,106250.0,106240.0,0.97926658]
[1734404373086,0.0006125,106250.0,106240.0,0.97926658]
[1734404374183,0.0001125,106250.0,106240.0,0.97926658]
[1734404375175,0.0006125,106250.0,106240.0,0.97926658]
[1734404376883,0.0006125,106250.0,106240.0,0.92911329]
[1734404380085,0.0006125,106250.0,106240.0,0.76866]
[1734404380291,0.10446579,106250.0,106240.0,0.76866]
[1734404380486,0.10446579,106250.0,106240.0,0.81881329]
[1734404380487,0.0543125,106250.0,106240.0,0.81881329]
[1734404380684,0.1013685,106250.0,106240.0,0.81881329]
[1734404381391,0.1013685,106250.0,106240.0,1.10015468]
[1734404381787,0.1013685,106250.0,106240.0,0.81881329]
[1734404381993,0.1013685,106250.0,106240.0,1.10022444]
[1734404382194,0.1008685,106250.0,106240.0,0.81881329]
[1734404382588,0.1008685,106250.0,106240.0,1.10023949]
[1734404382790,0.1008685,106250.0,106240.0,0.81881329]
[1734404382993,0.1008685,106250.0,106240.0,1.10030557]
[1734404383196,0.1008685,106250.0,106240.0,0.81881329]
[1734404383494,0.1008685,106250.0,106240.0,1.10030573]
[1734404383994,0.1008685,106250.0,106240.0,1.10040254]
[1734404384192,0.1008685,106250.0,106240.0,0.81881329]
[1734404384793,0.1008685,106250.0,106240.0,1.10050788]
[1734404384991,0.1008685,106250.0,106240.0,0.81881329]
[1734404385591,0.1008685,106250.0,106240.0,1.15671854]
[1734404385798,0.1008685,106250.0,106240.0,0.81881329]
[1734404385992,0.1008685,106250.0,106240.0,1.15671854]
[1734404387093,0.15102179,106250.0,106240.0,1.38851605]
[1734404387293,0.20372179,106250.0,106240.0,1.38851605]
[1734404387495,0.25802179,106250.0,106240.0,1.38851605]
[1734404387695,0.2078685,106250.0,106240.0,1.0506108]
[1734404388487,0.3702627,106250.0,106240.0,1.0506108]
[1734404389292,0.2078685,106250.0,106240.0,1.0506108]
[1734404389488,0.32010941,106250.0,106240.0,1.0506108]
[1734404391908,0.2078685,106250.0,106240.0,1.0506108]
[1734404393301,0.32010941,106250.0,106240.0,1.0506108]
[1734404393708,0.2078685,106250.0,106240.0,1.0506108]
[1734404394396,0.32010941,106250.0,106240.0,1.0506108]
[1734404394604,0.2078685,106250.0,106240.0,1.0506108]
[1734404394914,0.32010941,106250.0,106240.0,1.0506108]
[1734404395711,0.2078685,106250.0,106240.0,1.0506108]
[1734404395901,0.32010941,106250.0,106240.0,1.0506108]
[1734404397307,0.3702627,106250.0,106240.0,1.0506108]
[1734404397509,0.25802179,106250.0,106240.0,1.0506108]
[1734404397817,0.3702627,106250.0,106240.0,1.0506108]
[1734404400499,0.42041599,106250.0,106240.0,0.6427508]
[1734404400801,0.047065,106240.0,106230.0,0.6903188]
[1734404401008,0.20946885,106240.0,106230.0,0.6903188]
[1734404401315,0.20946885,106240.0,106230.0,0.6898188]
[1734404402198,0.09721829,106240.0,106230.0,0.6903188]
[1734404402610,0.20946885,106240.0,106230.0,0.6903188]
[1734404403114,0.20946885,106240.0,106230.0,0.6898188]
[1734404403306,0.14737158,106240.0,106230.0,0.6898188]
[1734404403505,0.25962214,106240.0,106230.0,0.3608]
[1734404403907,0.25962214,106240.0,106220.0,0.37019747]
[1734404404213,0.10305329,106230.0,106220.0,0.73099747]
[1734404404510,0.10305329,106230.0,106220.0,0.047073]
[1734404404719,0.10305329,106230.0,106220.0,0.6898238]
[1734404405108,0.15012329,106230.0,106220.0,0.6898238]
[1734404405710,0.15012329,106230.0,106220.0,0.6427508]
[1734404406011,0.047074,106220.0,106210.0,0.78430047]
[1734404406212,0.09722729,106220.0,106210.0,0.7431268]
[1734404408212,0.09722729,106220.0,106210.0,0.461176]
[1734404412609,0.10653318,106220.0,106210.0,0.461176]
[1734404415615,0.05637989,106220.0,106210.0,0.461176]
[1734404415812,0.05637989,106220.0,106210.0,0.51132929]
[1734404416031,0.05637989,106220.0,106210.0,0.79328009]
[1734404416718,0.41375725,106230.0,106220.0,0.047074]
[1734404416918,0.34772,106230.0,106220.0,0.65885425]
[1734404417121,0.0562301,106240.0,106220.0,0.94130505]
[1734404417319,0.0562301,106240.0,106230.0,0.14922329]
[1734404417718,0.0562301,106240.0,106230.0,0.51002329]
[1734404418217,0.0562301,106240.0,106230.0,0.79197409]
[1734404418425,0.0091631,106240.0,106230.0,0.79197409]
[1734404418624,0.0994755,106250.0,106240.0,0.047065]
[1734404418814,0.16887655,106250.0,106240.0,0.407865]
[1734404419627,0.11872326,106250.0,106240.0,0.407865]
[1734404419829,0.16887655,106250.0,106240.0,0.407865]
[1734404422243,0.07585503,106250.0,106240.0,0.51161829]
[1734404422630,0.02879203,106250.0,106240.0,0.56621829]
[1734404425228,0.07894532,106250.0,106240.0,0.56621829]
[1734404425542,0.07894532,106250.0,106240.0,0.516065]
[1734404426237,0.07894532,106250.0,106240.0,0.56621829]
[1734404427539,0.02879203,106250.0,106240.0,0.56621829]
[1734404429349,0.0001125,106250.0,106240.0,0.61637158]
[1734404431035,0.0001125,106250.0,106240.0,0.516065]
[1734404431239,0.0006125,106250.0,106240.0,0.61637158]
[1734404431643,0.0006125,106250.0,106240.0,0.56621829]
[1734404432148,0.0001125,106250.0,106240.0,0.56621829]
[1734404433048,0.00952005,106260.0,106240.0,0.84717158]
[1734404433234,0.15929556,106290.0,106280.0,0.047047]
[1734404433441,0.11225056,106290.0,106280.0,0.09720029]
[1734404433643,0.47694485,106300.0,106290.0,0.047043]
[1734404434151,0.47706402,106300.0,106290.0,0.047043]
[1734404435245,0.37403026,106300.0,106290.0,0.407843]
[1734404436043,0.32387697,106300.0,106290.0,0.407843]
[1734404436249,0.34251499,106300.0,106290.0,0.407843]
[1734404438252,0.28701499,106300.0,106290.0,0.407843]
[1734404441746,0.36347675,106300.0,106290.0,0.407843]
[1734404444042,0.36347675,106300.0,106290.0,0.047043]
[1734404444943,0.36347675,106300.0,106290.0,0.407843]
[1734404445947,0.28701499,106300.0,106290.0,0.407843]
[1734404450261,0.28751499,106300.0,106290.0,0.407843]
[1734404455974,0.33769163,106300.0,106290.0,0.407843]
[1734404456158,0.44994219,106300.0,106290.0,0.407843]
[1734404456962,0.34216555,106300.0,106290.0,0.45801964]
[1734404460455,0.29512455,106300.0,106290.0,0.45801964]
[1734404460666,0.24072455,106300.0,106290.0,0.45801964]
[1734404460855,0.24072455,106300.0,106290.0,0.56821964]
[1734404461068,0.24072455,106300.0,106290.0,0.61991964]
[1734404461270,0.24022455,106300.0,106290.0,0.61991964]
[1734404462167,0.38078951,106300.0,106290.0,0.61991964]
[1734404463271,0.26853895,106300.0,106290.0,0.61991964]
[1734404468167,0.38074601,106300.0,106290.0,0.61991964]
[1734404468368,0.24018105,106300.0,106290.0,0.61991964]
[1734404470070,0.22154303,106300.0,106290.0,0.61991964]
[1734404470466,0.10933597,106300.0,106290.0,0.67009628]
[1734404472870,0.10933597,106300.0,106290.0,0.569743]
[1734404473069,0.10933597,106300.0,106290.0,0.61991964]
[1734404474666,0.11270706,106310.0,106300.0,0.047039]
[1734404474867,0.11270706,106310.0,106300.0,0.50819228]
[1734404475262,0.11220706,106310.0,106300.0,0.50819228]
[1734404475662,0.1123079,106310.0,106300.0,0.50819228]
[1734404476162,0.1128079,106310.0,106300.0,0.50819228]
[1734404477277,0.1123079,106310.0,106300.0,0.50819228]
[1734404477480,0.00010084,106310.0,106300.0,0.50819228]
[1734404478177,0.00060084,106310.0,106300.0,0.50819228]
[1734404478879,0.08397887,106330.0,106300.0,0.85836892]